bitfinex-derivatives/quotes_BTCF0:USTF0_20230701
["timestamp","ask_amount","ask_price","bid_price","bid_amount"]
[1688248044249,0.11698366,30615.0,30614.0,0.40824249]
[1688248044450,0.11698366,30615.0,30614.0,0.76904249]
[1688248047842,0.11698366,30615.0,30614.0,0.7508128]
[1688248048154,0.11698366,30615.0,30614.0,0.3900128]
[1688248048342,0.11698366,30615.0,30614.0,0.7508128]
[1688248048542,0.11698366,30615.0,30614.0,0.76904249]
[1688248050354,0.11698366,30615.0,30614.0,0.40824249]
[1688248050555,0.11698366,30615.0,30614.0,0.76904249]
[1688248051153,0.11698366,30615.0,30614.0,0.40824249]
[1688248051552,0.11698366,30615.0,30614.0,0.73196335]
[1688248051958,0.11698366,30615.0,30614.0,0.75019304]
[1688248052354,0.11698366,30615.0,30614.0,0.73196335]
[1688248052660,0.11698366,30615.0,30614.0,0.75019304]
[1688248055963,0.11698366,30615.0,30614.0,0.38939304]
[1688248056157,0.11698366,30615.0,30614.0,0.75019304]
[1688248056660,0.11698366,30615.0,30614.0,0.38939304]
[1688248056860,0.11698366,30615.0,30614.0,0.75019304]
[1688248057259,0.11698366,30615.0,30614.0,0.38939304]
[1688248057453,0.11698366,30615.0,30614.0,0.75019304]
[1688248058248,0.11698366,30615.0,30614.0,0.73196335]
[1688248059064,0.11698366,30615.0,30614.0,0.37116335]
[1688248059463,0.11698366,30615.0,30614.0,0.73196335]
[1688248060367,0.11698366,30615.0,30614.0,0.75019304]
[1688248061464,0.11698366,30615.0,30614.0,1.07779304]
[1688248062772,0.11698366,30615.0,30614.0,1.09664249]
[1688248070476,0.11698366,30615.0,30614.0,0.73584249]
[1688248070969,0.11698366,30615.0,30614.0,1.09664249]
[1688248071174,0.11698366,30615.0,30614.0,0.73584249]
[1688248071876,0.11698366,30615.0,30614.0,1.09664249]
[1688248072278,0.11698366,30615.0,30614.0,1.0784128]
[1688248072581,0.11698366,30615.0,30614.0,1.09664249]
[1688248072770,0.11698366,30615.0,30614.0,0.73584249]
[1688248073076,0.11698366,30615.0,30614.0,1.09664249]
[1688248079677,0.11698366,30615.0,30614.0,0.73584249]
[1688248080076,0.11698366,30615.0,30614.0,1.09664249]
[1688248081666,0.11698366,30615.0,30614.0,0.73584249]
[1688248081667,0.1172068,30615.0,30614.0,0.73584249]
[1688248081873,0.1172068,30615.0,30614.0,1.09664249]
[1688248084181,0.1172068,30615.0,30614.0,1.05956335]
[1688248084384,0.1172068,30615.0,30614.0,1.07779304]
[1688248087084,0.1172068,30615.0,30614.0,1.09664249]
[1688248090692,0.1172068,30615.0,30614.0,0.73584249]
[1688248090891,0.1172068,30615.0,30614.0,1.07779304]
[1688248091780,0.1172068,30615.0,30614.0,0.71699304]
[1688248091982,0.1172068,30615.0,30614.0,1.07779304]
[1688248094384,0.1172068,30615.0,30614.0,1.09664249]
[1688248095082,0.1172068,30615.0,30614.0,0.73584249]
[1688248095391,0.1172068,30615.0,30614.0,1.09664249]
[1688248095888,0.1172068,30615.0,30614.0,0.73584249]
[1688248096090,0.1172068,30615.0,30614.0,1.09664249]
[1688248099090,0.1172068,30615.0,30614.0,0.73584249]
[1688248099395,0.1172068,30615.0,30614.0,1.09664249]
[1688248101198,0.1172068,30615.0,30614.0,0.73584249]
[1688248101691,0.1172068,30615.0,30614.0,1.09664249]
[1688248104592,0.1172068,30615.0,30614.0,0.73584249]
[1688248104793,0.1172068,30615.0,30614.0,1.09664249]
[1688248109797,0.1172068,30615.0,30614.0,0.73584249]
[1688248109994,0.1172068,30615.0,30614.0,1.09664249]
[1688248110194,0.1172068,30615.0,30614.0,0.73584249]
[1688248110398,0.1172068,30615.0,30614.0,1.09664249]
[1688248111795,0.1172068,30615.0,30614.0,1.07779304]
[1688248112493,0.1172068,30615.0,30614.0,0.71699304]
[1688248112698,0.1172068,30615.0,30614.0,1.07779304]
[1688248112896,0.1172068,30615.0,30614.0,0.71699304]
[1688248113095,0.1172068,30615.0,30614.0,1.07779304]
[1688248115496,0.1172068,30615.0,30614.0,0.71699304]
[1688248115697,0.1172068,30615.0,30614.0,1.07779304]
[1688248116501,0.1172068,30615.0,30614.0,0.97779304]
[1688248117002,0.1172068,30615.0,30614.0,0.95956335]
[1688248117303,0.1172068,30615.0,30614.0,0.97916235]
[1688248117692,0.1172068,30615.0,30614.0,0.99739204]
[1688248118096,0.1172068,30615.0,30614.0,0.65544149]
[1688248118802,0.1172068,30615.0,30614.0,1.01624149]
[1688248119103,0.1172068,30615.0,30614.0,0.65544149]
[1688248119304,0.1172068,30615.0,30614.0,1.01624149]
[1688248119706,0.1172068,30615.0,30614.0,0.65544149]
[1688248120089,0.1172068,30615.0,30614.0,1.01624149]
[1688248131207,0.1172068,30615.0,30614.0,0.65544149]
[1688248131505,0.1172068,30615.0,30614.0,1.01624149]
[1688248132711,0.0976088,30615.0,30614.0,1.01624149]
[1688248132999,0.0976088,30615.0,30614.0,0.65544149]
[1688248133192,0.0976088,30615.0,30614.0,1.01624149]
[1688248135905,0.0976088,30615.0,30614.0,0.65544149]
[1688248136102,0.0976088,30615.0,30614.0,1.01624149]
[1688248140810,0.0976088,30615.0,30614.0,0.65544149]
[1688248141009,0.0976088,30615.0,30614.0,1.01624149]
[1688248142699,0.0976088,30615.0,30614.0,0.65544149]
[1688248142917,0.0976088,30615.0,30614.0,1.01624149]
[1688248153220,0.0976088,30615.0,30614.0,0.65544149]
[1688248153419,0.0976088,30615.0,30614.0,1.01624149]
[1688248161522,0.0976088,30615.0,30614.0,0.65544149]
[1688248161819,0.0976088,30615.0,30614.0,1.01624149]
[1688248162215,0.0976088,30615.0,30614.0,0.65544149]
[1688248162615,0.0976088,30615.0,30614.0,1.01624149]
[1688248167228,0.0976088,30615.0,30614.0,0.65544149]
[1688248167425,0.0976088,30615.0,30614.0,1.01624149]
[1688248168329,0.0976088,30615.0,30614.0,0.65544149]
[1688248168533,0.0976088,30615.0,30614.0,1.01624149]
[1688248169231,0.0976088,30615.0,30614.0,0.65544149]
[1688248169530,0.0976088,30615.0,30614.0,1.01624149]
[1688248170830,0.0976088,30615.0,30614.0,0.65544149]
[1688248171227,0.0976088,30615.0,30614.0,1.01624149]
[1688248173230,0.0976088,30615.0,30614.0,0.65544149]
[1688248173538,0.0976088,30615.0,30614.0,1.01624149]
[1688248180837,0.0976088,30615.0,30614.0,0.65544149]
[1688248181137,0.0976088,30615.0,30614.0,1.01624149]
[1688248184044,0.0976088,30615.0,30614.0,0.65544149]
[1688248184231,0.0976088,30615.0,30614.0,1.01624149]
[1688248184636,0.0976088,30615.0,30614.0,0.65544149]
[1688248185047,0.0976088,30615.0,30614.0,1.01624149]
[1688248185238,0.0976088,30615.0,30614.0,0.65544149]
[1688248185634,0.0976088,30615.0,30614.0,1.01624149]
[1688248188549,0.0976088,30615.0,30614.0,0.65544149]
[1688248188764,0.0976088,30615.0,30614.0,1.01624149]
[1688248191745,0.0976088,30615.0,30614.0,0.65544149]
[1688248191947,0.0976088,30615.0,30614.0,1.01624149]
[1688248192346,0.0976088,30615.0,30614.0,0.99739204]
[1688248194552,0.0976088,30615.0,30614.0,0.63659204]
[1688248194743,0.0976088,30615.0,30614.0,0.99739204]
[1688248195546,0.0976088,30615.0,30614.0,0.97916235]
[1688248195947,0.0976088,30615.0,30614.0,0.99739204]
[1688248197453,0.0976088,30615.0,30614.0,0.63659204]
[1688248197653,0.0976088,30615.0,30614.0,0.99739204]
[1688248198247,0.1172068,30615.0,30614.0,0.99739204]
[1688248198450,0.1172068,30615.0,30614.0,0.97916235]
[1688248198951,0.1172068,30615.0,30614.0,0.99739204]
[1688248200456,0.1172068,30615.0,30614.0,0.9980118]
[1688248200847,0.1172068,30615.0,30614.0,0.97916235]
[1688248201954,0.1172068,30615.0,30614.0,0.99739204]
[1688248204954,0.1172068,30615.0,30614.0,0.97916235]
[1688248205449,0.1172068,30615.0,30614.0,0.97802235]
[1688248205663,0.1172068,30615.0,30614.0,0.61722235]
[1688248205849,0.1172068,30615.0,30614.0,0.99625204]
[1688248206051,0.12507953,30615.0,30614.0,0.63545204]
[1688248206265,0.12507953,30615.0,30614.0,0.99625204]
[1688248206859,0.12507953,30615.0,30614.0,0.97802235]
[1688248207060,0.12507953,30615.0,30614.0,0.99625204]
[1688248207258,0.12507953,30615.0,30614.0,0.97802235]
[1688248213674,0.12507953,30615.0,30614.0,1.06156335]
[1688248215984,0.12507953,30615.0,30614.0,0.70076335]
[1688248216374,0.12507953,30615.0,30614.0,1.06156335]
[1688248218892,0.12507953,30615.0,30614.0,1.06160645]
[1688248220098,0.12507953,30615.0,30614.0,1.07983614]
[1688248220293,0.12507953,30615.0,30614.0,1.06160645]
[1688248220698,0.12507953,30615.0,30614.0,1.07983614]
[1688248220888,0.12507953,30615.0,30614.0,0.71903614]
[1688248221089,0.12507953,30615.0,30614.0,1.06160645]
[1688248221486,0.12507953,30615.0,30614.0,1.07983614]
[1688248224586,0.10548153,30615.0,30614.0,1.07983614]
[1688248224793,0.10548153,30615.0,30614.0,1.09868559]
[1688248225895,0.10548153,30615.0,30614.0,0.73788559]
[1688248226198,0.10548153,30615.0,30614.0,1.45948559]
[1688248229905,0.05927694,30619.0,30615.0,0.00602302]
[1688248230109,0.07794696,30618.0,30616.0,0.05667614]
[1688248230306,0.01112045,30618.0,30617.0,0.7107]
[1688248230503,0.01112045,30618.0,30617.0,0.74914645]
[1688248230808,0.01112045,30618.0,30617.0,1.07747614]
[1688248231009,0.01112045,30618.0,30617.0,1.07798232]
[1688248231204,0.02722986,30619.0,30617.0,1.07798232]
[1688248231510,0.02722986,30619.0,30618.0,0.75027914]
[1688248231709,0.02722986,30619.0,30618.0,0.76987514]
[1688248231910,0.02722986,30619.0,30618.0,0.7703809]
[1688248233107,0.11168909,30619.0,30618.0,0.7703809]
[1688248234204,0.11168909,30619.0,30618.0,1.1311809]
[1688248237608,0.1249177,30619.0,30618.0,1.1311809]
[1688248241205,0.11168909,30619.0,30618.0,1.1311809]
[1688248245308,0.11162249,30619.0,30618.0,1.1311809]
[1688248245817,0.11162249,30619.0,30618.0,0.4095809]
[1688248246020,0.11162249,30619.0,30618.0,1.1311809]
[1688248247626,0.11162249,30619.0,30618.0,0.4095809]
[1688248248014,0.11162249,30619.0,30618.0,1.1311809]
[1688248248421,0.11162249,30619.0,30618.0,0.4095809]
[1688248248615,0.11162249,30619.0,30618.0,1.1311809]
[1688248248919,0.11162249,30619.0,30618.0,0.4095809]
[1688248249121,0.11162249,30619.0,30618.0,1.1311809]
[1688248249508,0.11162249,30619.0,30618.0,0.7703809]
[1688248249714,0.11162249,30619.0,30618.0,1.1311809]
[1688248252022,0.11162249,30619.0,30618.0,0.4095809]
[1688248252223,0.11162249,30619.0,30618.0,1.1311809]
[1688248253022,0.11162249,30619.0,30618.0,0.4095809]
[1688248253319,0.11162249,30619.0,30618.0,1.1311809]
[1688248255812,0.11162249,30619.0,30618.0,0.4095809]
[1688248256016,0.11162249,30619.0,30618.0,1.1311809]
[1688248256532,0.11162249,30619.0,30618.0,0.4095809]
[1688248257226,0.11162249,30619.0,30618.0,1.1311809]
[1688248260042,0.11162249,30619.0,30618.0,0.4095809]
[1688248260231,0.11162249,30619.0,30618.0,1.1311809]
[1688248264839,0.11162249,30619.0,30618.0,0.4095809]
[1688248265030,0.11162249,30619.0,30618.0,1.1311809]
[1688248265937,0.11162249,30619.0,30618.0,0.4095809]
[1688248266139,0.11162249,30619.0,30618.0,1.11295121]
[1688248266430,0.11162249,30619.0,30618.0,1.1311809]
[1688248267437,0.11162249,30619.0,30618.0,0.4095809]
[1688248267623,0.11162249,30619.0,30618.0,1.1311809]
[1688248269835,0.11162249,30619.0,30618.0,0.4095809]
[1688248270037,0.11162249,30619.0,30618.0,1.1311809]
[1688248271034,0.11162249,30619.0,30618.0,0.4095809]
[1688248271237,0.11162249,30619.0,30618.0,1.1311809]
[1688248275431,0.11162249,30619.0,30618.0,0.4095809]
[1688248275737,0.11162249,30619.0,30618.0,1.1311809]
[1688248277739,0.11162249,30619.0,30618.0,0.4095809]
[1688248277937,0.11162249,30619.0,30618.0,1.1311809]
[1688248281441,0.12055683,30619.0,30618.0,1.1311809]
[1688248289638,0.12385382,30619.0,30618.0,1.1311809]
[1688248297560,0.12385382,30619.0,30618.0,0.4095809]
[1688248297744,0.12385382,30619.0,30618.0,1.1311809]
[1688248306654,0.12385382,30619.0,30618.0,1.11233145]
[1688248307464,0.12385382,30619.0,30618.0,1.09410176]
[1688248307762,0.12385382,30619.0,30618.0,1.11233145]
[1688248310166,0.12385382,30619.0,30618.0,0.39073145]
[1688248310361,0.12385382,30619.0,30618.0,1.11233145]
[1688248311164,0.12385382,30619.0,30618.0,0.39073145]
[1688248311358,0.12385382,30619.0,30618.0,0.37250176]
[1688248311561,0.12385382,30619.0,30618.0,1.09410176]
[1688248314766,0.12385382,30619.0,30618.0,1.11233145]
[1688248315271,0.12385382,30619.0,30618.0,1.09410176]
[1688248315573,0.12385382,30619.0,30618.0,1.11233145]
[1688248318068,0.12385382,30619.0,30618.0,1.09410176]
[1688248318279,0.12385382,30619.0,30618.0,1.11233145]
[1688248318470,0.12385382,30619.0,30618.0,1.1311809]
[1688248319275,0.12385382,30619.0,30618.0,0.4095809]
[1688248319577,0.12385382,30619.0,30618.0,1.11295121]
[1688248319979,0.12385382,30619.0,30618.0,1.1311809]
[1688248323475,0.12385382,30619.0,30618.0,1.11295121]
[1688248323675,0.12385382,30619.0,30618.0,1.1311809]
[1688248324375,0.12385382,30619.0,30618.0,1.11295121]
[1688248324775,0.12385382,30619.0,30618.0,1.1311809]
[1688248325378,0.0971139,30619.0,30618.0,1.1311809]
[1688248329075,0.0971139,30619.0,30618.0,1.11295121]
[1688248330685,0.0971139,30619.0,30618.0,0.39135121]
[1688248330886,0.0971139,30619.0,30618.0,1.11295121]
[1688248336280,0.0971139,30619.0,30618.0,1.1311809]
[1688248336482,0.0971139,30619.0,30618.0,1.11295121]
[1688248337180,0.0971139,30619.0,30618.0,1.1311809]
[1688248337385,0.0971139,30619.0,30618.0,1.11295121]
[1688248337878,0.0971139,30619.0,30618.0,1.1311809]
[1688248340281,0.0971139,30619.0,30618.0,1.11295121]
[1688248343194,0.0971139,30619.0,30618.0,1.1311809]
[1688248346598,0.0971139,30619.0,30618.0,1.11295121]
[1688248347701,0.0971139,30619.0,30618.0,1.1311809]
[1688248348001,0.0971139,30619.0,30618.0,0.4095809]
[1688248348205,0.0971139,30619.0,30618.0,1.1311809]
[1688248349503,0.0971139,30619.0,30618.0,0.4095809]
[1688248349999,0.0971139,30619.0,30618.0,1.11295121]
[1688248351002,0.0971139,30619.0,30618.0,1.1311809]
[1688248354406,0.0971139,30619.0,30618.0,1.11295121]
[1688248354708,0.0971139,30619.0,30618.0,1.1311809]
[1688248356504,0.0971139,30619.0,30618.0,1.11295121]
[1688248356697,0.0971139,30619.0,30618.0,1.1311809]
[1688248357211,0.0971139,30619.0,30618.0,1.11295121]
[1688248360110,0.0971139,30619.0,30618.0,0.39135121]
[1688248360310,0.0971139,30619.0,30618.0,1.11295121]
[1688248361411,0.0971139,30619.0,30618.0,1.1311809]
[1688248361709,0.0971139,30619.0,30618.0,1.11295121]
[1688248364914,0.0971139,30619.0,30618.0,0.39135121]
[1688248365221,0.0971139,30619.0,30618.0,1.11295121]
[1688248367316,0.0971139,30619.0,30618.0,1.1311809]
[1688248369022,0.0971139,30619.0,30618.0,0.4095809]
[1688248369222,0.0971139,30619.0,30618.0,1.11295121]
[1688248369607,0.0971139,30619.0,30618.0,1.1311809]
[1688248370310,0.0971139,30619.0,30618.0,1.11295121]
[1688248372017,0.0971139,30619.0,30618.0,1.1311809]
[1688248372217,0.0971139,30619.0,30618.0,1.11295121]
[1688248372927,0.0971139,30619.0,30618.0,0.39135121]
[1688248373124,0.0971139,30619.0,30618.0,1.11295121]
[1688248373332,0.0971139,30619.0,30618.0,1.1311809]
[1688248373921,0.0971139,30619.0,30618.0,1.11295121]
[1688248374628,0.0971139,30619.0,30618.0,1.09410176]
[1688248378833,0.0971139,30619.0,30618.0,1.12074405]
[1688248379622,0.0971139,30619.0,30618.0,1.15782319]
[1688248380527,0.0971139,30619.0,30618.0,1.1395935]
[1688248382729,0.0971139,30619.0,30618.0,0.4179935]
[1688248382933,0.0971139,30619.0,30618.0,1.1395935]
[1688248383844,0.0971139,30619.0,30618.0,1.1382135]
[1688248385931,0.0971139,30619.0,30618.0,1.11157121]
[1688248389531,0.1167089,30619.0,30618.0,1.09272176]
[1688248389733,0.11097094,30619.0,30618.0,1.09272176]
[1688248395232,0.11097094,30619.0,30618.0,0.73192176]
[1688248397247,0.11097094,30619.0,30618.0,0.71232576]
[1688248397547,0.10902527,30619.0,30618.0,0.69302576]
[1688248397842,0.10902527,30619.0,30618.0,0.67712576]
[1688248399048,0.10902527,30619.0,30618.0,0.31632576]
[1688248404347,0.10902527,30619.0,30618.0,0.31452576]
[1688248407755,0.10902527,30619.0,30618.0,0.30996623]
[1688248408353,0.17540586,30619.0,30618.0,0.30996623]
[1688248412045,0.17540586,30619.0,30618.0,0.30946047]
[1688248412956,0.17540586,30619.0,30618.0,0.31009155]
[1688248414152,0.04397698,30617.0,30616.0,0.3608]
[1688248414349,0.04397698,30617.0,30616.0,0.7139]
[1688248414350,0.06357398,30617.0,30616.0,0.7139]
[1688248414557,0.15170411,30617.0,30616.0,0.7139]
[1688248414943,0.15170411,30617.0,30616.0,0.71446768]
[1688248416655,0.15170411,30617.0,30616.0,0.35366768]
[1688248417554,0.14803321,30617.0,30616.0,0.35366768]
[1688248423858,0.50113321,30617.0,30616.0,0.35366768]
[1688248427171,0.50113321,30617.0,30616.0,0.35351872]
[1688248430562,0.50113321,30617.0,30616.0,0.35291872]
[1688248443995,0.50113321,30617.0,30616.0,0.35166768]
[1688248447388,0.50113321,30617.0,30616.0,0.37126468]
[1688248453894,0.50113321,30617.0,30616.0,0.37036468]
[1688248463826,0.50113321,30617.0,30616.0,0.73116468]
[1688248463827,0.12843621,30617.0,30616.0,0.73116468]
[1688248464108,0.12843621,30617.0,30616.0,0.75001413]
[1688248464307,0.00042334,30619.0,30616.0,0.76824382]
[1688248464499,0.00042334,30619.0,30618.0,0.369796]
[1688248465001,0.00042334,30619.0,30618.0,0.40740601]
[1688248467200,0.08488415,30619.0,30618.0,0.40740601]
[1688248467601,0.08488415,30619.0,30618.0,0.72210601]
[1688248469115,0.08488415,30619.0,30618.0,1.08290601]
[1688248472711,0.08488415,30619.0,30618.0,0.72210601]
[1688248473316,0.08488415,30619.0,30618.0,1.08290601]
[1688248474713,0.10447915,30619.0,30618.0,1.08290601]
[1688248478024,0.10447915,30619.0,30618.0,0.72210601]
[1688248478219,0.10447915,30619.0,30618.0,1.08290601]
[1688248482021,0.10447915,30619.0,30618.0,0.72210601]
[1688248482229,0.10447915,30619.0,30618.0,1.08290601]
[1688248488932,0.10447915,30619.0,30618.0,0.72210601]
[1688248489134,0.10447915,30619.0,30618.0,1.08290601]
[1688248490829,0.10447915,30619.0,30618.0,0.72210601]
[1688248491029,0.10447915,30619.0,30618.0,1.08290601]
[1688248492829,0.10447915,30619.0,30618.0,0.72210601]
[1688248493034,0.10447915,30619.0,30618.0,1.08290601]
[1688248501126,0.10447915,30619.0,30618.0,1.06467632]
[1688248501435,0.10447915,30619.0,30618.0,1.08290601]
[1688248502240,0.10447915,30619.0,30618.0,1.06467632]
[1688248503238,0.10447915,30619.0,30618.0,1.08290601]
[1688248504834,0.10447915,30619.0,30618.0,1.06467632]
[1688248505232,0.10447915,30619.0,30618.0,1.08290601]
[1688248505434,0.43027915,30619.0,30618.0,1.08290601]
[1688248507343,0.43027915,30619.0,30618.0,1.06467632]
[1688248507547,0.43027915,30619.0,30618.0,1.08290601]
[1688248509450,0.43027915,30619.0,30618.0,0.76820601]
[1688248510048,0.43027915,30619.0,30618.0,0.74997632]
[1688248517563,0.43027915,30619.0,30618.0,0.76820601]
[1688248519269,0.43027915,30619.0,30618.0,0.74997632]
[1688248521765,0.43027915,30619.0,30618.0,0.38917632]
[1688248521958,0.43027915,30619.0,30618.0,0.74997632]
[1688248523158,0.43027915,30619.0,30618.0,0.35073087]
[1688248523868,0.78147915,30619.0,30618.0,0.35073087]
[1688248530474,0.78147915,30619.0,30618.0,0.37032687]
[1688248533969,0.43027915,30619.0,30618.0,0.37032687]
[1688248536071,0.43027915,30619.0,30618.0,0.35073087]
[1688248536871,0.49628183,30619.0,30618.0,0.35073087]
[1688248543886,0.84778183,30619.0,30618.0,0.35073087]
[1688248556586,0.84938183,30619.0,30618.0,0.35073087]
[1688248558489,0.84938183,30619.0,30618.0,0.37032687]
[1688248563906,0.84938183,30619.0,30618.0,0.37322687]
[1688248565296,0.84938183,30619.0,30618.0,0.31707124]
[1688248566190,0.84938183,30619.0,30618.0,0.31401743]
[1688248566392,0.84938183,30619.0,30618.0,0.2364384]
[1688248567495,0.84938183,30619.0,30618.0,0.2168424]
[1688248570897,0.84938183,30619.0,30618.0,0.35164555]
[1688248573908,0.84938183,30619.0,30618.0,0.00054555]
[1688248575009,0.84938183,30619.0,30617.0,0.352]
[1688248575193,0.45525681,30618.0,30617.0,0.352]
[1688248576205,0.45525681,30618.0,30617.0,0.35254601]
[1688248576406,0.369296,30618.0,30617.0,0.35364601]
[1688248588908,0.369296,30618.0,30617.0,0.00054601]
[1688248589103,0.369296,30618.0,30617.0,0.00054599]
[1688248604717,0.369296,30618.0,30617.0,0.02014299]
[1688248656464,0.37466638,30618.0,30617.0,0.02014299]
[1688248660270,0.45913624,30618.0,30617.0,0.02014299]
[1688248678973,0.45913624,30618.0,30617.0,0.0745385]
[1688248679367,0.45913624,30618.0,30617.0,0.02014299]
[1688248687175,0.45913624,30618.0,30617.0,0.38094299]
[1688248688486,0.45913624,30618.0,30617.0,0.02014299]
[1688248752526,0.45913624,30618.0,30617.0,0.03899244]
[1688248753126,0.45913624,30618.0,30617.0,0.02014299]
[1688248769144,0.45913624,30618.0,30617.0,0.019597]
[1688248769341,0.45913624,30618.0,30617.0,0.02020246]
[1688248776951,0.45376586,30618.0,30617.0,0.02020246]
[1688248780242,0.45376586,30618.0,30617.0,0.03905191]
[1688248781255,0.45376586,30618.0,30617.0,0.02020246]
[1688248798267,0.45376586,30618.0,30617.0,0.01996246]
[1688248802059,0.45376586,30618.0,30617.0,0.03881191]
[1688248803362,0.45376586,30618.0,30617.0,0.01996246]
[1688248806071,0.46411144,30618.0,30617.0,0.01996246]
[1688248806456,0.46411144,30618.0,30617.0,0.0570416]
[1688248806865,0.95642975,30618.0,30617.0,0.0570416]
[1688248808168,0.93683375,30618.0,30617.0,0.0570416]
[1688248808373,0.93863375,30618.0,30617.0,0.4090416]
[1688248810069,0.93833375,30618.0,30617.0,0.0570416]
[1688248813267,0.95792975,30618.0,30617.0,0.0570416]
[1688248814070,0.95982975,30618.0,30617.0,0.4101416]
[1688248814979,0.95982975,30618.0,30617.0,0.7709416]
[1688248823988,0.95982975,30618.0,30617.0,0.7702416]
[1688248826086,0.95982975,30618.0,30617.0,0.73316246]
[1688248826478,0.95982975,30618.0,30617.0,0.75139215]
[1688248826684,0.95982975,30618.0,30617.0,0.75201191]
[1688248827489,0.95982975,30618.0,30617.0,0.7702416]
[1688248828583,0.95982975,30618.0,30617.0,0.75201191]
[1688248829193,0.95982975,30618.0,30617.0,0.7702416]
[1688248833392,0.95982975,30618.0,30617.0,0.4094416]
[1688248833595,0.95982975,30618.0,30617.0,0.7702416]
[1688248836404,0.95982975,30618.0,30617.0,0.75201191]
[1688248837400,0.95982975,30618.0,30617.0,0.7702416]
[1688248837997,0.95982975,30618.0,30617.0,0.4094416]
[1688248838194,0.95982975,30618.0,30617.0,0.75201191]
[1688248838404,0.95982975,30618.0,30617.0,0.7702416]
[1688248839698,0.95982975,30618.0,30617.0,0.4094416]
[1688248839891,0.95982975,30618.0,30617.0,0.7702416]
[1688248840092,0.95982975,30618.0,30617.0,0.4178416]
[1688248841001,0.9548589,30618.0,30617.0,0.4178416]
[1688248843702,0.9548589,30618.0,30617.0,0.0570416]
[1688248843903,0.9548589,30618.0,30617.0,0.4178416]
[1688248844404,0.5821629,30618.0,30617.0,0.82533711]
[1688248844590,0.47337188,30618.0,30617.0,0.82533711]
[1688248846597,0.47337188,30618.0,30617.0,0.7709416]
[1688248857098,0.55783563,30618.0,30617.0,0.7709416]
[1688248857499,0.55783563,30618.0,30617.0,0.75271191]
[1688248858812,0.55783563,30618.0,30617.0,0.7709416]
[1688248859709,0.55783563,30618.0,30617.0,0.75271191]
[1688248860408,0.55783563,30618.0,30617.0,0.7709416]
[1688248862101,0.55783563,30618.0,30617.0,0.75271191]
[1688248864310,0.55783563,30618.0,30617.0,0.7709416]
[1688248864900,0.55783563,30618.0,30617.0,0.75271191]
[1688248874622,0.55783563,30618.0,30617.0,0.39191191]
[1688248874807,0.55783563,30618.0,30617.0,0.75271191]
[1688248876615,0.55783563,30618.0,30617.0,0.7709416]
[1688248877020,0.55783563,30618.0,30617.0,0.4101416]
[1688248877205,0.55783563,30618.0,30617.0,0.7709416]
[1688248877410,0.55783563,30618.0,30617.0,0.4101416]
[1688248877619,0.55783563,30618.0,30617.0,0.75271191]
[1688248878422,0.55783563,30618.0,30617.0,0.39191191]
[1688248878626,0.55783563,30618.0,30617.0,0.75271191]
[1688248881130,0.55783563,30618.0,30617.0,0.39191191]
[1688248881329,0.55783563,30618.0,30617.0,0.75271191]
[1688248885329,0.55783563,30618.0,30617.0,0.39191191]
[1688248885528,0.55783563,30618.0,30617.0,0.75271191]
[1688248888033,0.55783563,30618.0,30617.0,0.39191191]
[1688248888238,0.55783563,30618.0,30617.0,0.75271191]
[1688248891835,0.57743163,30618.0,30617.0,0.75271191]
[1688248895337,0.57743163,30618.0,30617.0,0.39191191]
[1688248895538,0.57743163,30618.0,30617.0,0.75271191]
[1688248897342,0.57743163,30618.0,30617.0,0.39191191]
[1688248897847,0.57743163,30618.0,30617.0,0.39170634]
[1688248898342,0.57743163,30618.0,30617.0,0.37285689]
[1688248900338,0.57743163,30618.0,30617.0,0.73365689]
[1688248901131,0.57743163,30618.0,30617.0,0.75250634]
[1688248904850,0.57743163,30618.0,30617.0,0.39170634]
[1688248905149,0.57743163,30618.0,30617.0,0.75250634]
[1688248906339,0.55783563,30618.0,30617.0,0.75250634]
[1688248910959,0.55783563,30618.0,30617.0,0.39170634]
[1688248911341,0.55783563,30618.0,30617.0,0.75250634]
[1688248912047,0.55783563,30618.0,30617.0,0.39170634]
[1688248912253,0.55783563,30618.0,30617.0,0.75250634]
[1688248913650,0.55783563,30618.0,30617.0,0.39170634]
[1688248913854,0.55783563,30618.0,30617.0,0.75250634]
[1688248916242,0.55783563,30618.0,30617.0,0.39170634]
[1688248916447,0.55783563,30618.0,30617.0,0.75250634]
[1688248916742,0.57743163,30618.0,30617.0,0.75250634]
[1688248921250,0.57743163,30618.0,30617.0,0.73365689]
[1688248923860,0.57743163,30618.0,30617.0,0.75250634]
[1688248924555,0.57743163,30618.0,30617.0,0.75220634]
[1688248926957,0.57743163,30618.0,30617.0,0.73335689]
[1688248928247,0.57743163,30618.0,30617.0,0.75220634]
[1688248930061,0.57743163,30618.0,30617.0,0.73335689]
[1688248932253,0.57743163,30618.0,30617.0,0.75220634]
[1688248933866,0.93053163,30618.0,30617.0,0.75150634]
[1688248934059,0.93053163,30618.0,30617.0,0.39070634]
[1688248936069,0.93053163,30618.0,30617.0,0.37185689]
[1688248938171,0.93053163,30618.0,30617.0,0.39070634]
[1688248939267,0.93053163,30618.0,30617.0,0.37185689]
[1688248945570,0.93053163,30618.0,30617.0,0.39070634]
[1688248945975,0.23471518,30618.0,30617.0,0.77043603]
[1688248946167,0.60772841,30627.0,30622.0,0.05]
[1688248946368,0.44633506,30627.0,30626.0,0.7139]
[1688248946570,0.09587585,30630.0,30626.0,0.783491]
[1688248946882,0.46833506,30631.0,30629.0,0.352]
[1688248947174,0.49521993,30630.0,30629.0,0.048973]
[1688248947366,0.49521993,30630.0,30629.0,0.400973]
[1688248947564,0.84831993,30630.0,30627.0,0.00048972]
[1688248947767,0.84831993,30630.0,30622.0,0.019593]
[1688248947768,0.01959,30627.0,30622.0,0.019593]
[1688248947976,0.019594,30622.0,30619.0,0.065319]
[1688248948165,0.372695,30620.0,30619.0,0.065319]
[1688248948371,0.372695,30620.0,30618.0,0.019595]
[1688248948569,0.019596,30618.0,30614.0,0.019599]
[1688248948775,0.3531,30615.0,30613.0,0.00048994]
[1688248948971,0.3515,30614.0,30613.0,0.02008894]
[1688248949172,0.57583088,30614.0,30613.0,0.02008894]
[1688248949375,0.57583088,30614.0,30613.0,0.73398894]
[1688248949578,0.57583088,30614.0,30613.0,1.04748894]
[1688248949773,0.24918294,30614.0,30613.0,1.04748894]
[1688248950174,0.27453,30619.0,30613.0,1.04748894]
[1688248950478,0.08446426,30618.0,30617.0,0.7139]
[1688248950679,0.08446426,30618.0,30617.0,0.733497]
[1688248950874,0.57370167,30618.0,30617.0,0.733497]
[1688248955183,0.57370167,30618.0,30617.0,1.094297]
[1688248955986,0.57370167,30618.0,30617.0,1.09476778]
[1688248956187,0.92520167,30618.0,30617.0,1.09476778]
[1688248962190,0.57370167,30618.0,30617.0,1.09476778]
[1688248962583,0.94565112,30618.0,30617.0,0.74166778]
[1688248962785,0.96524712,30618.0,30617.0,0.74166778]
[1688248963489,0.98347681,30618.0,30617.0,0.74166778]
[1688248963687,0.96524712,30618.0,30617.0,0.74166778]
[1688248967999,0.94639767,30618.0,30617.0,0.74166778]
[1688248969795,0.94639767,30618.0,30617.0,1.04766778]
[1688248971094,0.94639767,30618.0,30617.0,0.68686778]
[1688248972282,0.92680167,30618.0,30617.0,0.68686778]